[Event "December 19 Early 2023"]
[Site "https://www.chess.com"]
[Date "2023.12.19"]
[Round "3"]
[White "Volovich, Vasily"]
[Black "Zimmermann, Ulrich"]
[Result "0-1"]
[Board "67"]
[TimeControl "180+1"]
[WhiteFideId "34169676"]
[BlackFideId "24654523"]
[WhiteElo "2313"]
[BlackElo "2223"]
[WhiteTeam "RUS"]
[BlackTeam "GER"]
[WhiteClock "0:00:05"]
[BlackClock "0:00:05"]

1. d4 {[%clk 0:03:00]}  Nf6 {[%clk 0:03:00]} 2. Nc3 {[%clk 0:03:01]}  e6 {[%clk 0:03:01]} 3. Bf4 {[%clk 0:03:01]}  c5 {[%clk 0:03:01]} 4. d5 {[%clk 0:02:59]}  Nxd5 {[%clk 0:02:51]} 5. Nxd5 {[%clk 0:02:59]}  exd5 {[%clk 0:02:52]} 6. Qxd5 {[%clk 0:02:59]}  Be7 {[%clk 0:02:52]} 7. O-O-O {[%clk 0:02:58]}  O-O {[%clk 0:02:51]} 8. Nf3 {[%clk 0:02:58]}  Nc6 {[%clk 0:02:52]} 9. e4 {[%clk 0:02:54]}  Nb4 {[%clk 0:02:31]} 10. Qb3 {[%clk 0:02:53]}  d6 {[%clk 0:02:24]} 11. a3 {[%clk 0:02:46]}  Be6 {[%clk 0:02:09]} 12. Bc4 {[%clk 0:02:44]}  Bxc4 {[%clk 0:02:06]} 13. Qxc4 {[%clk 0:02:44]}  b5 {[%clk 0:02:05]} 14. Qxb5 {[%clk 0:02:31]}  Rb8 {[%clk 0:02:05]} 15. Qa4 {[%clk 0:02:31]}  Bf6 {[%clk 0:01:44]} 16. axb4 {[%clk 0:02:06]}  Rxb4 {[%clk 0:01:42]} 17. Qxb4 {[%clk 0:01:40]}  cxb4 {[%clk 0:01:40]} 18. Bxd6 {[%clk 0:01:40]}  Qa5 {[%clk 0:01:36]} 19. Bxf8 {[%clk 0:01:38]}  Qa1+ {[%clk 0:00:57]} 20. Kd2 {[%clk 0:01:38]}  Qxb2 {[%clk 0:00:57]} 21. Bd6 {[%clk 0:01:22]}  Qc3+ {[%clk 0:00:53]} 22. Ke2 {[%clk 0:01:18]}  Qxc2+ {[%clk 0:00:49]} 23. Nd2 {[%clk 0:01:15]}  Bc3 {[%clk 0:00:45]} 24. Bf4 {[%clk 0:01:09]}  h6 {[%clk 0:00:33]} 25. Rc1 {[%clk 0:01:05]}  Qa4 {[%clk 0:00:33]} 26. Be3 {[%clk 0:00:59]}  Qb5+ {[%clk 0:00:33]} 27. Kf3 {[%clk 0:00:57]}  Qd3 {[%clk 0:00:33]} 28. Rhd1 {[%clk 0:00:54]}  f5 {[%clk 0:00:31]} 29. exf5 {[%clk 0:00:49]}  Qxf5+ {[%clk 0:00:30]} 30. Ke2 {[%clk 0:00:48]}  Qb5+ {[%clk 0:00:27]} 31. Ke1 {[%clk 0:00:40]}  a5 {[%clk 0:00:27]} 32. Rxc3 {[%clk 0:00:33]}  bxc3 {[%clk 0:00:26]} 33. Ne4 {[%clk 0:00:33]}  Qb4 {[%clk 0:00:24]} 34. Rd4 {[%clk 0:00:20]}  Qb1+ {[%clk 0:00:24]} 35. Ke2 {[%clk 0:00:21]}  c2 {[%clk 0:00:20]} 36. Rc4 {[%clk 0:00:21]}  a4 {[%clk 0:00:19]} 37. Rc3 {[%clk 0:00:19]}  a3 {[%clk 0:00:18]} 38. Rxa3 {[%clk 0:00:19]}  c1=Q {[%clk 0:00:18]} 39. Bxc1 {[%clk 0:00:19]}  Qxc1 {[%clk 0:00:18]} 40. Re3 {[%clk 0:00:20]}  Qc2+ {[%clk 0:00:18]} 41. Kf3 {[%clk 0:00:21]}  Kh7 {[%clk 0:00:18]} 42. g3 {[%clk 0:00:21]}  Qd1+ {[%clk 0:00:16]} 43. Kg2 {[%clk 0:00:22]}  Qd5 {[%clk 0:00:17]} 44. h4 {[%clk 0:00:22]}  Kg6 {[%clk 0:00:16]} 45. Kh2 {[%clk 0:00:23]}  Kh7 {[%clk 0:00:16]} 46. Nd2 {[%clk 0:00:23]}  Qxd2 {[%clk 0:00:15]} 47. Kg2 {[%clk 0:00:23]}  Kg6 {[%clk 0:00:16]} 48. Rf3 {[%clk 0:00:24]}  Qd5 {[%clk 0:00:16]} 49. g4 {[%clk 0:00:24]}  Qe4 {[%clk 0:00:16]} 50. Kg3 {[%clk 0:00:25]}  Qe5+ {[%clk 0:00:16]} 51. Kg2 {[%clk 0:00:26]}  Qe4 {[%clk 0:00:17]} 52. Kg3 {[%clk 0:00:26]}  Qe1 {[%clk 0:00:18]} 53. Kg2 {[%clk 0:00:26]}  h5 {[%clk 0:00:17]} 54. gxh5+ {[%clk 0:00:24]}  Kxh5 {[%clk 0:00:18]} 55. Rg3 {[%clk 0:00:22]}  g6 {[%clk 0:00:17]} 56. Rg5+ {[%clk 0:00:22]}  Kh6 {[%clk 0:00:18]} 57. Rg3 {[%clk 0:00:22]}  Qe4+ {[%clk 0:00:17]} 58. Kh2 {[%clk 0:00:21]}  Qf4 {[%clk 0:00:16]} 59. Kg2 {[%clk 0:00:21]}  Kh5 {[%clk 0:00:16]} 60. Re3 {[%clk 0:00:20]}  Kxh4 {[%clk 0:00:14]} 61. Rg3 {[%clk 0:00:21]}  Kh5 {[%clk 0:00:14]} 62. Rh3+ {[%clk 0:00:21]}  Kg5 {[%clk 0:00:14]} 63. Rg3+ {[%clk 0:00:22]}  Kh6 {[%clk 0:00:15]} 64. Re3 {[%clk 0:00:22]}  g5 {[%clk 0:00:15]} 65. Rg3 {[%clk 0:00:23]}  Kh5 {[%clk 0:00:15]} 66. Re3 {[%clk 0:00:23]}  g4 {[%clk 0:00:15]} 67. Rg3 {[%clk 0:00:24]}  Qe4+ {[%clk 0:00:16]} 68. Kh2 {[%clk 0:00:24]}  Kh4 {[%clk 0:00:15]} 69. Re3 {[%clk 0:00:23]}  Qf4+ {[%clk 0:00:15]} 70. Kg2 {[%clk 0:00:24]}  Qf5 {[%clk 0:00:15]} 71. Rg3 {[%clk 0:00:24]}  Qd5+ {[%clk 0:00:15]} 72. Kh2 {[%clk 0:00:24]}  Qd2 {[%clk 0:00:15]} 73. Kg2 {[%clk 0:00:24]}  Qd5+ {[%clk 0:00:16]} 74. Kh2 {[%clk 0:00:25]}  Qe4 {[%clk 0:00:16]} 75. Re3 {[%clk 0:00:24]}  Qh7 {[%clk 0:00:11]} 76. Kg2 {[%clk 0:00:24]}  Kg5 {[%clk 0:00:10]} 77. Rg3 {[%clk 0:00:24]}  Kf4 {[%clk 0:00:11]} 78. Re3 {[%clk 0:00:24]}  Qb7+ {[%clk 0:00:08]} 79. Kh2 {[%clk 0:00:24]}  Qb2 {[%clk 0:00:09]} 80. Kg2 {[%clk 0:00:25]}  Qd2 {[%clk 0:00:09]} 81. Rg3 {[%clk 0:00:25]}  Qe2 {[%clk 0:00:09]} 82. Re3 {[%clk 0:00:25]}  Qd1 {[%clk 0:00:06]} 83. Rg3 {[%clk 0:00:25]}  Qd5+ {[%clk 0:00:06]} 84. Kh2 {[%clk 0:00:25]}  Qh5+ {[%clk 0:00:03]} 85. Kg2 {[%clk 0:00:25]}  Qh4 {[%clk 0:00:04]} 86. Re3 {[%clk 0:00:25]}  Qg5 {[%clk 0:00:02]} 87. Rg3 {[%clk 0:00:26]}  Qh5 {[%clk 0:00:03]} 88. Re3 {[%clk 0:00:26]}  Qh4 {[%clk 0:00:03]} 89. Rg3 {[%clk 0:00:26]}  Qxg3+ {[%clk 0:00:03]} 90. fxg3+ {[%clk 0:00:25]}  Ke3 {[%clk 0:00:04]} 91. Kg1 {[%clk 0:00:03]}  Kf3 {[%clk 0:00:03]} 92. Kf1 {[%clk 0:00:04]}  Kxg3 {[%clk 0:00:04]} 93. Kg1 {[%clk 0:00:05]}  Kf3 {[%clk 0:00:04]} 94. Kh1 {[%clk 0:00:05]}  Kg3 {[%clk 0:00:04]} 95. Kg1 {[%clk 0:00:06]}  Kh3 {[%clk 0:00:04]} 96. Kh1 {[%clk 0:00:05]}  g3 {[%clk 0:00:03]} 97. Kg1 {[%clk 0:00:06]}  g2 {[%clk 0:00:04]} 98. Kf2 {[%clk 0:00:05]}  Kh2 {[%clk 0:00:05]} 0-1

[Event "December 19 Early 2023"]
[Site "https://www.chess.com"]
[Date "2023.12.19"]
[Round "3"]
[White "Maurizzi, Marc`Andria"]
[Black "Dinu, Dumitru-Daniel"]
[Result "1-0"]
[Board "69"]
[TimeControl "180+1"]
[WhiteFideId "36083534"]
[BlackFideId "1208403"]
[WhiteElo "2417"]
[BlackElo "2240"]
[WhiteTeam "FRA"]
[BlackTeam "ROU"]
[WhiteClock "0:01:39"]
[BlackClock "0:00:00"]

1. e4 {[%clk 0:03:00]}  c5 {[%clk 0:02:59]} 2. Nf3 {[%clk 0:02:59]}  d6 {[%clk 0:02:59]} 3. d4 {[%clk 0:02:59]}  cxd4 {[%clk 0:02:59]} 4. Nxd4 {[%clk 0:03:00]}  Nf6 {[%clk 0:02:59]} 5. Nc3 {[%clk 0:03:01]}  a6 {[%clk 0:02:59]} 6. b4 {[%clk 0:03:02]}  e5 {[%clk 0:02:48]} 7. Nf3 {[%clk 0:03:01]}  d5 {[%clk 0:02:44]} 8. a3 {[%clk 0:03:00]}  d4 {[%clk 0:02:39]} 9. Nxe5 {[%clk 0:02:59]}  dxc3 {[%clk 0:02:08]} 10. Qxd8+ {[%clk 0:02:58]}  Kxd8 {[%clk 0:02:08]} 11. Nxf7+ {[%clk 0:02:58]}  Ke8 {[%clk 0:02:09]} 12. Nxh8 {[%clk 0:02:59]}  Be6 {[%clk 0:02:09]} 13. e5 {[%clk 0:02:54]}  Nfd7 {[%clk 0:02:06]} 14. Bd3 {[%clk 0:02:51]}  g6 {[%clk 0:01:56]} 15. Nxg6 {[%clk 0:02:43]}  hxg6 {[%clk 0:01:56]} 16. Bxg6+ {[%clk 0:02:44]}  Kd8 {[%clk 0:01:51]} 17. Bg5+ {[%clk 0:02:43]}  Kc7 {[%clk 0:01:50]} 18. f4 {[%clk 0:02:42]}  Nc6 {[%clk 0:01:47]} 19. h4 {[%clk 0:02:40]}  a5 {[%clk 0:01:40]} 20. b5 {[%clk 0:02:38]}  Nd4 {[%clk 0:01:40]} 21. Rh3 {[%clk 0:02:39]}  Bxh3 {[%clk 0:01:37]} 22. gxh3 {[%clk 0:02:38]}  Bc5 {[%clk 0:01:26]} 23. Rd1 {[%clk 0:02:27]}  Rg8 {[%clk 0:01:16]} 24. Be4 {[%clk 0:02:20]}  Ne6 {[%clk 0:01:00]} 25. Ke2 {[%clk 0:02:12]}  Rf8 {[%clk 0:00:54]} 26. Rf1 {[%clk 0:02:07]}  Bxa3 {[%clk 0:00:54]} 27. Bd5 {[%clk 0:02:01]}  Nd4+ {[%clk 0:00:49]} 28. Kd3 {[%clk 0:02:00]}  Nf5 {[%clk 0:00:45]} 29. h5 {[%clk 0:02:00]}  Ng3 {[%clk 0:00:43]} 30. Rf3 {[%clk 0:01:54]}  Nxh5 {[%clk 0:00:42]} 31. e6 {[%clk 0:01:55]}  Ndf6 {[%clk 0:00:38]} 32. Ba2 {[%clk 0:01:50]}  Bd6 {[%clk 0:00:32]} 33. f5 {[%clk 0:01:44]}  Rg8 {[%clk 0:00:26]} 34. h4 {[%clk 0:01:43]}  Rf8 {[%clk 0:00:23]} 35. Kxc3 {[%clk 0:01:42]}  Ng3 {[%clk 0:00:18]} 36. Kd3 {[%clk 0:01:41]}  Nfh5 {[%clk 0:00:16]} 37. f6 {[%clk 0:01:39]}  Nxf6 {[%clk 0:00:04]} 38. Rxf6 {[%clk 0:01:40]}  Rxf6 {[%clk 0:00:04]} 39. Bxf6 {[%clk 0:01:41]}  Nh5 {[%clk 0:00:04]} 40. Bg5 {[%clk 0:01:40]}  Ng7 {[%clk 0:00:04]} 41. Ke4 {[%clk 0:01:39]}  Ne8 {[%clk 0:00:02]} 42. h5 {[%clk 0:01:38]}  Ng7 {[%clk 0:00:02]} 43. h6 {[%clk 0:01:39]}  Ne8 {[%clk 0:00:00]} 44. h7 {[%clk 0:01:39]} 1-0

[Event "December 19 Early 2023"]
[Site "https://www.chess.com"]
[Date "2023.12.19"]
[Round "3"]
[White "Muradli, Mahammad"]
[Black "Avila Rodriguez, Joshua Ad"]
[Result "1-0"]
[Board "71"]
[TimeControl "180+1"]
[WhiteFideId "13409301"]
[BlackFideId "5126444"]
[WhiteElo "2551"]
[BlackElo "2097"]
[WhiteTeam "AZE"]
[BlackTeam "MEX"]
[WhiteClock "0:02:19"]
[BlackClock "0:01:30"]

1. Nf3 {[%clk 0:03:00]}  Nf6 {[%clk 0:02:59]} 2. g3 {[%clk 0:02:55]}  d5 {[%clk 0:02:59]} 3. Bg2 {[%clk 0:02:55]}  c5 {[%clk 0:02:59]} 4. O-O {[%clk 0:02:56]}  e6 {[%clk 0:03:00]} 5. c4 {[%clk 0:02:55]}  d4 {[%clk 0:02:59]} 6. b4 {[%clk 0:02:54]}  cxb4 {[%clk 0:02:57]} 7. a3 {[%clk 0:02:55]}  Nc6 {[%clk 0:02:56]} 8. d3 {[%clk 0:02:54]}  a5 {[%clk 0:02:52]} 9. Bf4 {[%clk 0:02:41]}  Be7 {[%clk 0:02:48]} 10. Ne5 {[%clk 0:02:32]}  Nxe5 {[%clk 0:02:25]} 11. Bxe5 {[%clk 0:02:33]}  O-O {[%clk 0:02:25]} 12. axb4 {[%clk 0:02:26]}  Bxb4 {[%clk 0:02:24]} 13. Na3 {[%clk 0:02:26]}  Ra6 {[%clk 0:02:06]} 14. Nb5 {[%clk 0:02:24]}  Rb6 {[%clk 0:01:30]} 15. Bc7 {[%clk 0:02:19]} 1-0

[Event "December 19 Early 2023"]
[Site "https://www.chess.com"]
[Date "2023.12.19"]
[Round "3"]
[White "Praggnanandhaa R"]
[Black "Horak, Martin"]
[Result "1-0"]
[Board "72"]
[TimeControl "180+1"]
[WhiteFideId "25059530"]
[BlackFideId "367095"]
[WhiteElo "2665"]
[BlackElo "2091"]
[WhiteTeam "IND"]
[BlackTeam "CZE"]
[WhiteClock "0:01:42"]
[BlackClock "0:00:00"]

1. d4 {[%clk 0:03:00]}  d5 {[%clk 0:02:59]} 2. Bg5 {[%clk 0:02:58]}  c5 {[%clk 0:02:56]} 3. e3 {[%clk 0:02:56]}  Nc6 {[%clk 0:02:53]} 4. Nf3 {[%clk 0:02:56]}  Qb6 {[%clk 0:02:38]} 5. dxc5 {[%clk 0:02:55]}  Qxc5 {[%clk 0:02:37]} 6. Nc3 {[%clk 0:02:54]}  Be6 {[%clk 0:02:07]} 7. Nd4 {[%clk 0:02:49]}  Bd7 {[%clk 0:01:49]} 8. Nb3 {[%clk 0:02:44]}  Qb6 {[%clk 0:01:38]} 9. Nxd5 {[%clk 0:02:44]}  Qd8 {[%clk 0:01:28]} 10. Be2 {[%clk 0:02:44]}  Nf6 {[%clk 0:01:27]} 11. Bxf6 {[%clk 0:02:41]}  exf6 {[%clk 0:01:28]} 12. O-O {[%clk 0:02:41]}  Bd6 {[%clk 0:01:27]} 13. Qd2 {[%clk 0:02:35]}  O-O {[%clk 0:01:24]} 14. Rad1 {[%clk 0:02:35]}  Be6 {[%clk 0:01:16]} 15. c3 {[%clk 0:02:26]}  Bxd5 {[%clk 0:00:59]} 16. Qxd5 {[%clk 0:02:26]}  Be5 {[%clk 0:00:48]} 17. Qe4 {[%clk 0:02:20]}  Qe7 {[%clk 0:00:43]} 18. f4 {[%clk 0:02:19]}  Bd6 {[%clk 0:00:41]} 19. Qxe7 {[%clk 0:02:19]}  Bxe7 {[%clk 0:00:39]} 20. Rd7 {[%clk 0:02:19]}  Rab8 {[%clk 0:00:36]} 21. Bf3 {[%clk 0:02:18]}  Rfe8 {[%clk 0:00:28]} 22. Bxc6 {[%clk 0:02:06]}  bxc6 {[%clk 0:00:28]} 23. Rxa7 {[%clk 0:02:02]}  Ra8 {[%clk 0:00:20]} 24. Ra5 {[%clk 0:01:54]}  Rxa5 {[%clk 0:00:19]} 25. Nxa5 {[%clk 0:01:54]}  Bc5 {[%clk 0:00:19]} 26. Nxc6 {[%clk 0:01:50]}  Rxe3 {[%clk 0:00:16]} 27. Kh1 {[%clk 0:01:49]}  Re2 {[%clk 0:00:16]} 28. b4 {[%clk 0:01:47]}  Bd6 {[%clk 0:00:11]} 29. a4 {[%clk 0:01:46]}  Bxf4 {[%clk 0:00:11]} 30. a5 {[%clk 0:01:45]}  Bd2 {[%clk 0:00:10]} 31. c4 {[%clk 0:01:43]}  Re4 {[%clk 0:00:00]} 32. a6 {[%clk 0:01:42]} 1-0

[Event "December 19 Early 2023"]
[Site "https://www.chess.com"]
[Date "2023.12.19"]
[Round "3"]
[White "Zhigalko, Sergei"]
[Black "Nurgaliyeva, Zarina"]
[Result "1-0"]
[Board "73"]
[TimeControl "180+1"]
[WhiteFideId "13502956"]
[BlackFideId "13730096"]
[WhiteElo "2616"]
[BlackElo "2001"]
[WhiteTeam "BLR"]
[BlackTeam "KAZ"]
[WhiteClock "0:00:03"]
[BlackClock "0:00:00"]

1. e4 {[%clk 0:03:00]}  e5 {[%clk 0:02:59]} 2. Nf3 {[%clk 0:03:00]}  Nc6 {[%clk 0:02:59]} 3. Bc4 {[%clk 0:03:01]}  Nf6 {[%clk 0:02:58]} 4. d3 {[%clk 0:03:01]}  h6 {[%clk 0:02:58]} 5. O-O {[%clk 0:03:01]}  Bc5 {[%clk 0:02:58]} 6. Nbd2 {[%clk 0:03:01]}  d6 {[%clk 0:02:58]} 7. c3 {[%clk 0:03:01]}  a5 {[%clk 0:02:58]} 8. Re1 {[%clk 0:02:57]}  O-O {[%clk 0:02:58]} 9. Nf1 {[%clk 0:02:56]}  Be6 {[%clk 0:02:56]} 10. Bb5 {[%clk 0:02:56]}  Ne7 {[%clk 0:02:29]} 11. d4 {[%clk 0:02:37]}  exd4 {[%clk 0:02:18]} 12. cxd4 {[%clk 0:02:38]}  Bb4 {[%clk 0:02:18]} 13. Re2 {[%clk 0:02:38]}  c6 {[%clk 0:01:52]} 14. Bd3 {[%clk 0:02:36]}  a4 {[%clk 0:01:50]} 15. Ng3 {[%clk 0:02:30]}  Ng6 {[%clk 0:01:37]} 16. a3 {[%clk 0:02:30]}  Ba5 {[%clk 0:01:30]} 17. Qxa4 {[%clk 0:02:23]}  Bg4 {[%clk 0:01:27]} 18. Qd1 {[%clk 0:02:09]}  Bxf3 {[%clk 0:01:16]} 19. gxf3 {[%clk 0:02:10]}  Nh4 {[%clk 0:01:15]} 20. Rc2 {[%clk 0:01:59]}  Qd7 {[%clk 0:01:15]} 21. Be3 {[%clk 0:01:51]}  Nh7 {[%clk 0:01:02]} 22. f4 {[%clk 0:01:34]}  Nf6 {[%clk 0:00:35]} 23. f5 {[%clk 0:01:27]}  Bd8 {[%clk 0:00:28]} 24. Kh1 {[%clk 0:01:19]}  b6 {[%clk 0:00:20]} 25. Qe2 {[%clk 0:01:18]}  c5 {[%clk 0:00:20]} 26. Rg1 {[%clk 0:01:15]}  Kh8 {[%clk 0:00:10]} 27. f3 {[%clk 0:01:00]}  Nh7 {[%clk 0:00:07]} 28. Nh5 {[%clk 0:00:58]}  Rg8 {[%clk 0:00:07]} 29. Qf2 {[%clk 0:00:54]}  Bg5 {[%clk 0:00:04]} 30. Rg4 {[%clk 0:00:50]}  Bxe3 {[%clk 0:00:03]} 31. Qxe3 {[%clk 0:00:49]}  cxd4 {[%clk 0:00:03]} 32. Qxd4 {[%clk 0:00:48]}  Nxf3 {[%clk 0:00:02]} 33. Qe3 {[%clk 0:00:37]}  Ne5 {[%clk 0:00:03]} 34. Rg3 {[%clk 0:00:38]}  f6 {[%clk 0:00:02]} 35. Bc4 {[%clk 0:00:33]}  d5 {[%clk 0:00:01]} 36. Bxd5 {[%clk 0:00:33]}  Rac8 {[%clk 0:00:01]} 37. Rxc8 {[%clk 0:00:30]}  Rxc8 {[%clk 0:00:02]} 38. Rxg7 {[%clk 0:00:27]}  Qb5 {[%clk 0:00:03]} 39. Rg1 {[%clk 0:00:14]}  Ng5 {[%clk 0:00:02]} 40. Nxf6 {[%clk 0:00:14]}  Rc2 {[%clk 0:00:02]} 41. Ng4 {[%clk 0:00:08]}  Nef3 {[%clk 0:00:02]} 42. Qf4 {[%clk 0:00:04]}  Qxb2 {[%clk 0:00:01]} 43. Qb8+ {[%clk 0:00:04]}  Kh7 {[%clk 0:00:01]} 44. Qb7+ {[%clk 0:00:03]}  Kh8 {[%clk 0:00:01]} 45. Qb8+ {[%clk 0:00:03]}  Kh7 {[%clk 0:00:01]} 46. Rf1 {[%clk 0:00:03]}  Rg2 {[%clk 0:00:00]} 47. Qb7+ {[%clk 0:00:03]} 1-0

[Event "December 19 Early 2023"]
[Site "https://www.chess.com"]
[Date "2023.12.19"]
[Round "3"]
[White "Berezin, Viktor"]
[Black "Sjugirov, Sanan"]
[Result "0-1"]
[Board "76"]
[TimeControl "180+1"]
[WhiteFideId "14107872"]
[BlackFideId "4189302"]
[WhiteElo "2310"]
[BlackElo "2569"]
[WhiteTeam "UKR"]
[BlackTeam "HUN"]
[WhiteClock "0:00:14"]
[BlackClock "0:01:56"]

1. d4 {[%clk 0:02:59]}  Nf6 {[%clk 0:02:59]} 2. Nf3 {[%clk 0:02:55]}  b6 {[%clk 0:02:59]} 3. g3 {[%clk 0:02:55]}  Bb7 {[%clk 0:02:59]} 4. Bg2 {[%clk 0:02:56]}  g6 {[%clk 0:03:00]} 5. O-O {[%clk 0:02:55]}  Bg7 {[%clk 0:03:00]} 6. b3 {[%clk 0:02:55]}  O-O {[%clk 0:03:00]} 7. Bb2 {[%clk 0:02:55]}  c5 {[%clk 0:02:56]} 8. c4 {[%clk 0:02:51]}  cxd4 {[%clk 0:02:56]} 9. Bxd4 {[%clk 0:02:51]}  d6 {[%clk 0:02:56]} 10. Bb2 {[%clk 0:02:49]}  Nbd7 {[%clk 0:02:55]} 11. Nc3 {[%clk 0:02:50]}  Rc8 {[%clk 0:02:56]} 12. Rc1 {[%clk 0:02:49]}  a6 {[%clk 0:02:56]} 13. Ne1 {[%clk 0:02:46]}  Bxg2 {[%clk 0:02:55]} 14. Nxg2 {[%clk 0:02:47]}  Ne4 {[%clk 0:02:43]} 15. Qc2 {[%clk 0:02:36]}  Nxc3 {[%clk 0:02:42]} 16. Bxc3 {[%clk 0:02:36]}  Bxc3 {[%clk 0:02:43]} 17. Qxc3 {[%clk 0:02:37]}  b5 {[%clk 0:02:44]} 18. Qd4 {[%clk 0:02:27]}  Qa5 {[%clk 0:02:42]} 19. h4 {[%clk 0:02:09]}  Qxa2 {[%clk 0:02:40]} 20. h5 {[%clk 0:02:01]}  Qxe2 {[%clk 0:02:33]} 21. Rfe1 {[%clk 0:01:57]}  Qxh5 {[%clk 0:02:32]} 22. Rxe7 {[%clk 0:01:57]}  Ne5 {[%clk 0:02:32]} 23. Nh4 {[%clk 0:01:34]}  bxc4 {[%clk 0:02:32]} 24. Qxd6 {[%clk 0:01:30]}  cxb3 {[%clk 0:01:56]} 25. Rxc8 {[%clk 0:00:49]}  Rxc8 {[%clk 0:01:57]} 26. Rxe5 {[%clk 0:00:37]}  b2 {[%clk 0:01:57]} 27. Re1 {[%clk 0:00:30]}  Qb5 {[%clk 0:01:56]} 28. Qd1 {[%clk 0:00:17]}  Qb4 {[%clk 0:01:56]} 29. Qb1 {[%clk 0:00:17]}  Qxe1+ {[%clk 0:01:55]} 30. Qxe1 {[%clk 0:00:14]}  Rc1 {[%clk 0:01:56]} 0-1

[Event "December 19 Early 2023"]
[Site "https://www.chess.com"]
[Date "2023.12.19"]
[Round "3"]
[White "Mahdavi, Reza"]
[Black "Hamley, Ryan"]
[Result "1-0"]
[Board "77"]
[TimeControl "180+1"]
[WhiteFideId "12595926"]
[BlackFideId "30959497"]
[WhiteElo "2426"]
[BlackElo "2513"]
[WhiteTeam "IRI"]
[BlackTeam "USA"]
[WhiteClock "0:02:20"]
[BlackClock "0:01:17"]

1. e4 {[%clk 0:02:58]}  g6 {[%clk 0:02:58]} 2. d4 {[%clk 0:02:57]}  Bg7 {[%clk 0:02:59]} 3. Nc3 {[%clk 0:02:58]}  b6 {[%clk 0:03:00]} 4. f4 {[%clk 0:02:56]}  Bb7 {[%clk 0:03:00]} 5. Nf3 {[%clk 0:02:57]}  e6 {[%clk 0:03:00]} 6. Bd3 {[%clk 0:02:56]}  Ne7 {[%clk 0:02:59]} 7. Be3 {[%clk 0:02:56]}  O-O {[%clk 0:02:59]} 8. O-O {[%clk 0:02:55]}  d6 {[%clk 0:02:58]} 9. Qd2 {[%clk 0:02:54]}  c5 {[%clk 0:02:54]} 10. Ne2 {[%clk 0:02:49]}  f5 {[%clk 0:02:49]} 11. e5 {[%clk 0:02:48]}  dxe5 {[%clk 0:02:46]} 12. dxe5 {[%clk 0:02:43]}  Nd5 {[%clk 0:02:42]} 13. Bf2 {[%clk 0:02:40]}  Nc6 {[%clk 0:02:40]} 14. a3 {[%clk 0:02:32]}  Qe8 {[%clk 0:02:14]} 15. c4 {[%clk 0:02:32]}  Nc7 {[%clk 0:02:10]} 16. b4 {[%clk 0:02:32]}  Rd8 {[%clk 0:01:55]} 17. bxc5 {[%clk 0:02:32]}  Na6 {[%clk 0:01:55]} 18. cxb6 {[%clk 0:02:31]}  axb6 {[%clk 0:01:56]} 19. Bxb6 {[%clk 0:02:32]}  Rd7 {[%clk 0:01:55]} 20. Qc3 {[%clk 0:02:31]}  Qc8 {[%clk 0:01:51]} 21. c5 {[%clk 0:02:31]}  Kh8 {[%clk 0:01:47]} 22. Bc4 {[%clk 0:02:31]}  Re7 {[%clk 0:01:44]} 23. Rfd1 {[%clk 0:02:30]}  h6 {[%clk 0:01:40]} 24. Rd6 {[%clk 0:02:30]}  Kh7 {[%clk 0:01:40]} 25. Rad1 {[%clk 0:02:26]}  Rff7 {[%clk 0:01:26]} 26. Ba2 {[%clk 0:02:21]}  Bf8 {[%clk 0:01:26]} 27. Ned4 {[%clk 0:02:19]}  Nxd4 {[%clk 0:01:17]} 28. Nxd4 {[%clk 0:02:20]} 1-0

[Event "December 19 Early 2023"]
[Site "https://www.chess.com"]
[Date "2023.12.19"]
[Round "3"]
[White "Jones, Gawain C B"]
[Black "Tabuenca Mendataurigoitia, Daniel"]
[Result "1-0"]
[Board "78"]
[TimeControl "180+1"]
[WhiteFideId "409561"]
[BlackFideId "24563617"]
[WhiteElo "2645"]
[BlackElo "2130"]
[WhiteTeam "ENG"]
[BlackTeam "ESP"]
[WhiteClock "0:00:30"]
[BlackClock "0:00:00"]

1. e4 {[%clk 0:02:56]}  d6 {[%clk 0:02:54]} 2. d4 {[%clk 0:02:56]}  Nf6 {[%clk 0:02:53]} 3. Nc3 {[%clk 0:02:56]}  e5 {[%clk 0:02:54]} 4. Nge2 {[%clk 0:02:54]}  exd4 {[%clk 0:02:52]} 5. Nxd4 {[%clk 0:02:54]}  Be7 {[%clk 0:02:52]} 6. g3 {[%clk 0:02:47]}  d5 {[%clk 0:02:38]} 7. Bg2 {[%clk 0:02:46]}  dxe4 {[%clk 0:02:36]} 8. O-O {[%clk 0:02:45]}  O-O {[%clk 0:02:36]} 9. Nxe4 {[%clk 0:02:43]}  c6 {[%clk 0:02:33]} 10. Re1 {[%clk 0:02:41]}  Nxe4 {[%clk 0:02:29]} 11. Bxe4 {[%clk 0:02:40]}  Bf6 {[%clk 0:02:29]} 12. c3 {[%clk 0:02:39]}  Na6 {[%clk 0:02:22]} 13. Qc2 {[%clk 0:02:26]}  g6 {[%clk 0:02:20]} 14. Bh6 {[%clk 0:02:26]}  Bg7 {[%clk 0:02:11]} 15. Bxg7 {[%clk 0:02:26]}  Kxg7 {[%clk 0:02:12]} 16. Rad1 {[%clk 0:02:24]}  Qf6 {[%clk 0:02:12]} 17. h4 {[%clk 0:02:14]}  Bg4 {[%clk 0:02:08]} 18. f3 {[%clk 0:02:10]}  Bd7 {[%clk 0:01:59]} 19. h5 {[%clk 0:02:02]}  Rfd8 {[%clk 0:01:52]} 20. Qd2 {[%clk 0:01:45]}  h6 {[%clk 0:01:35]} 21. hxg6 {[%clk 0:01:44]}  fxg6 {[%clk 0:01:36]} 22. Kg2 {[%clk 0:01:28]}  Nc5 {[%clk 0:01:31]} 23. Rh1 {[%clk 0:01:27]}  h5 {[%clk 0:01:29]} 24. Bb1 {[%clk 0:01:23]}  Be6 {[%clk 0:01:20]} 25. b4 {[%clk 0:01:17]}  Bd5 {[%clk 0:01:13]} 26. bxc5 {[%clk 0:01:09]}  Bxf3+ {[%clk 0:01:13]} 27. Nxf3 {[%clk 0:01:10]}  Rxd2+ {[%clk 0:01:12]} 28. Rxd2 {[%clk 0:01:10]}  Rf8 {[%clk 0:01:08]} 29. Rd3 {[%clk 0:00:58]}  Qe7 {[%clk 0:01:01]} 30. Re1 {[%clk 0:00:55]}  Qxc5 {[%clk 0:01:00]} 31. Rd7+ {[%clk 0:00:55]}  Kh6 {[%clk 0:00:59]} 32. Ree7 {[%clk 0:00:51]}  Rxf3 {[%clk 0:00:54]} 33. Kxf3 {[%clk 0:00:51]}  Qxc3+ {[%clk 0:00:53]} 34. Bd3 {[%clk 0:00:51]}  Qf6+ {[%clk 0:00:45]} 35. Kg2 {[%clk 0:00:48]}  Qb2+ {[%clk 0:00:45]} 36. Re2 {[%clk 0:00:47]}  Qb4 {[%clk 0:00:38]} 37. Rf2 {[%clk 0:00:33]}  Qg4 {[%clk 0:00:12]} 38. Rf6 {[%clk 0:00:29]}  Qxd7 {[%clk 0:00:01]} 39. Rxg6+ {[%clk 0:00:29]}  Kh7 {[%clk 0:00:00]} 40. Rd6+ {[%clk 0:00:30]} 1-0